Workbook

Sheet MSU
B1: Sami Koivula | E1: 21.5.1975 Lappajärvi
B2: SUPERPESIS | E2: Runkosarja | I2: Kärkilyönnit (KL), pesänvälit | P2: Runkosarja TOP-30 | U2: Ylempi loppusarja | AB2: Ylempi loppusarja TOP-10 | AG2: Play off, voitot, voittoprosentti | AL2: Arvo-ottelut | AO2: Mitalit
B3: Vuosi | C3: Sija | D3: Seura | E3: OTT | F3: KUN | G3: LÖI | H3: TOI | I3: KL | J3: 0 > 1 | K3: 1 > 2 | L3: 2 > 3 | M3: 3 > k | N3: KL-% | P3: LÖI | Q3: TOI | R3: L+T | S3: KL | U3: OTT | V3: KUN | W3: LÖI | X3: TOI | Y3: KL | Z3: KL-% | AB3: LÖI | AC3: TOI | AD3: L+T | AE3: KL | AG3: Puolivälierät | AH3: Välierät | AI3: Pronssi | AJ3: Finaalit | AL3: IL | AM3: LL | AN3: hSM | AO3: K | AP3: H | AQ3: P
B4: 1993 | C4: 3. | D4: AA 2 | F4: suomensarja
B5: 1993 | C5: 4. | D5: AA | E5: 7 | F5: 0 | G5: 0 | H5: 0 | I5: 6 | J5: 3 | K5: 0 | L5: 3 | M5: 0 | N5: 35.3 % | U5: 2 | V5: 0 | W5: 0 | X5: 0 | Y5: 0 | Z5: 0.0 % | AG5: 3-1 LP
B6: 1994 | C6: 4. | D6: AA | E6: 34 | F6: 0 | G6: 24 | H6: 12 | I6: 101 | J6: 26 | K6: 22 | L6: 29 | M6: 24 | N6: 43.5 % | P6: 25. | U6: 4 | V6: 0 | W6: 2 | X6: 1 | Y6: 13 | Z6: 43.3 % | AH6: 0-2 Lippo | AI6: 0-2 SoJy
B7: 1995 | C7: 6. | D7: AA | E7: 28 | F7: 2 | G7: 14 | H7: 14 | I7: 87 | J7: 25 | K7: 21 | L7: 25 | M7: 16 | N7: 45.1 % | U7: 1 | V7: 0 | W7: 0 | X7: 0 | Y7: 0 | Z7: 0.0 % | AG7: 0-3 SMJ
B8: 1996 | C8: 11. | D8: AA | E8: 29 | F8: 0 | G8: 27 | H8: 8 | I8: 111 | J8: 16 | K8: 27 | L8: 41 | M8: 27 | N8: 53.4 % | P8: 22.
B9: 1997 | C9: 11. | D9: AA | E9: 28 | F9: 0 | G9: 23 | H9: 11 | I9: 121 | J9: 23 | K9: 29 | L9: 46 | M9: 23 | N9: 54.3 %
B10: 1998 | C10: 10. | D10: AA | E10: 28 | F10: 2 | G10: 25 | H10: 14 | I10: 111 | J10: 26 | K10: 23 | L10: 35 | M10: 27 | N10: 53.6 % | P10: 23.
B11: 1999 | C11: 9. | D11: AA | E11: 27 | F11: 0 | G11: 15 | H11: 5 | I11: 47 | J11: 8 | K11: 8 | L11: 16 | M11: 15 | N11: 35.9 %
B12: 2000
B13: 2001 | C13: 11. | D13: AA | E13: 26 | F13: 2 | G13: 32 | H13: 10 | I13: 110 | J13: 6 | K13: 25 | L13: 45 | M13: 34 | N13: 62.9 % | P13: 27.
B14: 2002 | C14: 2. | D14: AA | F14: ykköspesis
B15: 2003
B16: 2004
B17: 2005 | C17: 2. | D17: SMJ 2 | F17: suomensarja
B18: 2005 | C18: 12. | D18: SMJ | E18: 1 | F18: 0 | G18: 1 | H18: 0 | I18: 3 | J18: 0 | K18: 0 | L18: 2 | M18: 1 | N18: 60.0 %
B19: Yhteensä | E19: 208 | F19: 6 | G19: 161 | H19: 74 | I19: 697 | J19: 133 | K19: 155 | L19: 242 | M19: 167 | N19: 50.1 % | P19: 0-0-0 | Q19: 0-0-0 | R19: 0-0-0 | S19: 0-0-0 | U19: 7 | V19: 0 | W19: 2 | X19: 1 | Y19: 13 | Z19: 36.1 % | AB19: 0-0-0 | AC19: 0-0-0 | AD19: 0-0-0 | AE19: 0-0-0 | AG19: 1/2 | AH19: 0/1 | AI19: 0/1 | AJ19: 0/0 | AL19: 0 | AM19: 0 | AN19: 0 | AO19: 0 | AP19: 0 | AQ19: 0
AG20: 50.0 % | AH20: 0.0 % | AI20: 0.0 % | AJ20: 0.0 %
B21: Pesispörssi | D21: 487.0
B23: URA SUPERISSA | E23: OTT | F23: KUN | G23: LÖI | H23: TOI | I23: KL | K23: ka/L | L23: ka/T | M23: ka/KL | N23: KL-% | P23: ENSIMMÄISET RUNKOSARJASSA | AG23: ENSIMMÄISET PUDOTUSPELEISSÄ | AL23: YLEISÖ
B24: Runkosarja | E24: 208 | F24: 6 | G24: 161 | H24: 74 | I24: 697 | K24: 0.80 | L24: 0.36 | M24: 3.35 | N24: 50.1 % | P24: Ottelu | R24: 11.07. 1993 SoJy - AA 6-5 | Z24: 1. ottelu | AC24: 18 v 1 kk 20 pv | AG24: Ottelu | AH24: 1. 25.08. 1993 AA - LP 6-7 | AL24: 1112 | AN24: 18 v 3 kk 4 pv
B25: Ylempi loppusarja | E25: 7 | F25: 0 | G25: 2 | H25: 1 | I25: 13 | K25: 0.29 | L25: 0.14 | M25: 1.86 | N25: 36.1 % | P25: Lyöty | R25: 08.05. 1994 KaMa - AA 0-2 (3-5, 1-7) | Z25: 8. ottelu | AC25: 18 v 11 kk 17 pv | AG25: Lyöty | AH25: 5. 11.09. 1994 AA - SoJy 0-2 | AL25: 1485 | AN25: 19 v 3 kk 21 pv
B26: Alempi loppusarja | E26: 24 | F26: 1 | G26: 25 | H26: 9 | I26: 79 | K26: 1.08 | L26: 0.38 | M26: 3.95 | N26: 58.5 % | P26: Tuotu | R26: 08.05. 1994 KaMa - AA 0-2 (3-5, 1-7) | Z26: 8. ottelu | AC26: 18 v 11 kk 17 pv | AG26: Tuotu | AH26: 4. 03.09. 1994 Lippo - AA 2-0 | AL26: 4115 | AN26: 19 v 3 kk 13 pv
B27: KAIKKI | E27: 239 | F27: 7 | G27: 188 | H27: 84 | I27: 789 | K27: 0.82 | L27: 0.35 | M27: 3.36 | N27: 50.5 % | P27: Kunnari | R27: 30.07. 1995 Tahko - AA 0-2 (4-5, 1-2) | Z27: 75. ottelu | AC27: 20 v 2 kk 9 pv | AG27: Kunnari
B29: Seurat | D29: LaVe = Lappajärven Veikot (1911), kasvattajaseura | N29: AA = Alajärven Ankkurit (1944) | W29: SMJ = Seinäjoen Maila-Jussit (1932)
B31: RUNKOSARJA, KA / OTT | F31: IKÄ | G31: OTT | H31: LÖI | I31: TOI | J31: TEHO | K31: KL | M31: SIJOITUS | P31: OTT | Q31: LÖI | R31: TOI | S31: TEHO | U31: KL | W31: RUNKOSARJA, TASASATASET, ka. / peli | AI31: KUNNARIT YHDESSÄ OTTELUSSA
B32: 1993 | C32: 4. | D32: AA | F32: 18 | G32: 7 | H32: =PRODUCT((F5+G5)/E5) -> 0.00 | I32: =PRODUCT(H5/E5) -> 0.00 | J32: =PRODUCT(F5+G5+H5)/E5 -> 0.00 | K32: =PRODUCT(I5/E5) -> 0.86 | M32: 1945 - 1993 | O32: 20 | P32: 1223. | U32: 608. | W32: Ottelutilasto | AI32: 1995-07-30 | AJ32: Tahko - AA 0-2 | AM32: 2
B33: 1994 | C33: 4. | D33: AA | F33: 19 | G33: 34 | H33: =PRODUCT((F6+G6)/E6) -> 0.71 | I33: =PRODUCT(H6/E6) -> 0.35 | J33: =PRODUCT(F6+G6+H6)/E6 -> 1.06 | K33: =PRODUCT(I6/E6) -> 2.97 | M33: 1945 - 1994 | O33: 20 | P33: 739. | Q33: 626. | R33: 845. | S33: 747. | U33: 389. | W33: 200 | Y33: 184. 19.07. 2001 KiPa - AA 2-0 | AG33: 26 v 1 kk 5 pv
B34: 1995 | C34: 6. | D34: AA | F34: 20 | G34: 28 | H34: 0.57 | I34: 0.50 | J34: 1.07 | K34: 3.11 | M34: 1945 - 1995 | O34: 21 | P34: 565. | Q34: 507. | R34: 649. | S34: 593. | U34: 312.
B35: 1996 | C35: 11. | D35: AA | F35: 21 | G35: 29 | H35: 0.93 | I35: 0.28 | J35: 1.21 | K35: 3.83 | M35: 1945 - 1996 | P35: 420. | Q35: 349. | R35: 586. | S35: 455. | U35: 247.
B36: 1997 | C36: 11. | D36: AA | F36: 22 | G36: 28 | H36: 0.82 | I36: 0.39 | J36: 1.21 | K36: 4.32 | M36: 1945 - 1997 | P36: 346. | Q36: 268. | R36: 512. | S36: 368. | U36: 201.
B37: 1998 | C37: 10. | D37: AA | F37: 23 | G37: 28 | H37: 0.96 | I37: 0.50 | J37: 1.46 | K37: 3.96 | M37: 1945 - 1998 | P37: 269. | Q37: 198. | R37: 443. | S37: 303. | U37: 171.
B38: 1999 | C38: 9. | D38: AA | F38: 24 | G38: 27 | H38: 0.56 | I38: 0.19 | J38: 0.74 | K38: 1.74 | M38: 1945 - 1999 | P38: 205. | Q38: 175. | R38: 421. | S38: 278. | U38: 160.
B39: 2000 | F39: 25 | M39: 1945 - 2000 | P39: 212. | Q39: 181. | R39: 430. | S39: 291. | U39: 171.
B40: 2001 | C40: 11. | D40: AA | F40: 26 | G40: 26 | H40: 1.31 | I40: 0.38 | J40: 1.69 | K40: 4.23 | M40: 1945 - 2001 | P40: 165. | Q40: 124. | R40: 386. | S40: 232. | U40: 151.
B41: 2002 | F41: 27 | M41: 1945 - 2002 | P41: 172. | Q41: 127. | R41: 395. | S41: 239. | U41: 157.
B42: 2003 | F42: 28 | M42: 1945 - 2003 | P42: 179. | Q42: 130. | R42: 408. | S42: 241. | U42: 161.
B43: 2004 | F43: 29 | M43: 1945 - 2004 | P43: 189. | Q43: 132. | R43: 414. | S43: 245. | U43: 171.
B44: 2005 | C44: 12. | D44: SMJ | F44: 30 | G44: 1 | H44: =PRODUCT((F18+G18)/E18) -> 1.00 | I44: =PRODUCT(H18/E18) -> 0.00 | J44: =PRODUCT(F18+G18+H18)/E18 -> 1.00 | K44: =PRODUCT(I18/E18) -> 3.00 | M44: 1945 - 2006 | P44: 195. | Q44: 134. | R44: 422. | S44: 247. | U44: 176.
B47: PLAY OFF, KA / OTT | F47: IKÄ | G47: OTT | H47: LÖI | I47: TOI | J47: TEHO | K47: KL | M47: SIJOITUS | P47: OTT | Q47: LÖI | R47: TOI | S47: TEHO | U47: KL | W47: PLAY OFF, TASASATASET, ka. / peli
B48: 1993 | C48: 4. | D48: AA | F48: 18 | G48: 2 | H48: =PRODUCT((V5+W5)/U5) -> 0.00 | I48: =PRODUCT(X5/U5) -> 0.00 | J48: =PRODUCT(V5+W5+X5)/U5 -> 0.00 | K48: =PRODUCT(Y5/U5) -> 0.00 | M48: 1979 - 1993 | O48: 20 | P48: 262.
B49: 1994 | C49: 4. | D49: AA | F49: 19 | G49: 4 | H49: =PRODUCT((V6+W6)/U6) -> 0.50 | I49: =PRODUCT(X6/U6) -> 0.25 | J49: =PRODUCT(V6+W6+X6)/U6 -> 0.75 | K49: =PRODUCT(Y6/U6) -> 3.25 | M49: 1979 - 1994 | O49: 20 | P49: 192. | Q49: 189. | R49: 214. | S49: 210. | U49: 216.
B50: 1995 | C50: 6. | D50: AA | F50: 20 | G50: 1 | H50: 0.00 | I50: 0.00 | J50: 0.00 | K50: 0.00 | M50: 1979 - 1995 | O50: 21 | P50: 196. | Q50: 204. | R50: 234. | S50: 224. | U50: 231.
B51: 1996 | C51: 11. | D51: AA | F51: 21 | M51: 1979 - 1996 | P51: 214. | Q51: 224. | R51: 248. | S51: 243. | U51: 253.
B52: 1997 | C52: 11. | D52: AA | F52: 22 | M52: 1979 - 1997 | P52: 240. | Q52: 236. | R52: 268. | S52: 263. | U52: 275.
B53: 1998 | C53: 10. | D53: AA | F53: 23 | M53: 1979 - 1998 | P53: 250. | Q53: 246. | R53: 277. | S53: 274. | U53: 287.
B54: 1999 | C54: 9. | D54: AA | F54: 24 | M54: 1979 - 1999 | P54: 270. | Q54: 262. | R54: 297. | S54: 295. | U54: 311.
B55: 2000 | F55: 25 | M55: 1979 - 2000 | P55: 291. | Q55: 269. | R55: 311. | S55: 312. | U55: 331.
B56: 2001 | C56: 11. | D56: AA | F56: 26 | M56: 1979 - 2001 | P56: 301. | Q56: 286. | R56: 323. | S56: 323. | U56: 340.
B57: 2002 | F57: 27 | M57: 1979 - 2002 | P57: 311. | Q57: 296. | R57: 335. | S57: 335. | U57: 351.
B58: 2003 | F58: 28 | M58: 1979 - 2003 | P58: 324. | Q58: 309. | R58: 352. | S58: 356. | U58: 367.
B59: 2004 | F59: 29 | M59: 1979 - 2004 | P59: 345. | Q59: 323. | R59: 363. | S59: 368. | U59: 380.
B60: 2005 | C60: 12. | D60: SMJ | F60: 30 | M60: 1979 - 2005 | P60: 355. | Q60: 330. | R60: 379. | S60: 379. | U60: 392.

Sheet MYP, MSS
B1: Sami Koivula | E1: 21.5.1975 Lappajärvi
B2: YKKÖSPESIS | E2: Runkosarja | L2: Runkosarja TOP-10 | Q2: Jatkosarjat | X2: SUOMENSARJA | AA2: Runkosarja | AH2: Runkosarja TOP-10 | AM2: Jatkosarjat
B3: Vuosi | C3: Sija | D3: Seura | E3: OTT | F3: KUN | G3: LÖI | H3: TOI | I3: KL | J3: KL-% | L3: LÖI | M3: TOI | N3: L+T | O3: KL | Q3: OTT | R3: KUN | S3: LÖI | T3: TOI | U3: KL | V3: KL-% | X3: Vuosi | Y3: Sija | Z3: Seura | AA3: OTT | AB3: KUN | AC3: LÖI | AD3: TOI | AE3: KL | AF3: KL-% | AH3: LÖI | AI3: TOI | AJ3: L+T | AK3: KL | AM3: OTT | AN3: KUN | AO3: LÖI | AP3: TOI | AQ3: KL | AR3: KL-%
X4: 1993 | Y4: 3. | Z4: AA 2 | AA4: 18 | AB4: 1 | AC4: 15 | AD4: 28
B6: 2002 | C6: 2. | D6: AA | E6: 22 | F6: 4 | G6: 56 | H6: 22 | I6: 141 | J6: 73.1 % | K6: 193 | L6: 1. | N6: 2. | O6: 4.
X8: 2005 | Y8: 2. | Z8: SMJ 2 | AA8: 12 | AB8: 2 | AC8: 18 | AD8: 17 | AE8: 68 | AF8: 66.7 % | AG8: 102 | AM8: 1 | AN8: 0 | AO8: 1 | AP8: 0 | AQ8: 4 | AR8: 50.0 % | AS8: 8
B9: YHTEENSÄ | E9: =SUM(E4:E8) -> 22 | F9: =SUM(F4:F8) -> 4 | G9: =SUM(G4:G8) -> 56 | H9: =SUM(H4:H8) -> 22 | I9: =SUM(I4:I8) -> 141 | J9: =PRODUCT(I9/K9) -> 73.1 % | K9: =SUM(K4:K8) -> 193 | Q9: =SUM(Q4:Q8) -> 0 | R9: =SUM(R4:R8) -> 0 | S9: =SUM(S4:S8) -> 0 | T9: =SUM(T4:T8) -> 0 | U9: =SUM(U4:U8) -> 0 | V9: 0.0 % | W9: =SUM(W4:W8) -> 0 | X9: YHTEENSÄ | AA9: =SUM(AA4:AA8) -> 30 | AB9: =SUM(AB4:AB8) -> 3 | AC9: =SUM(AC4:AC8) -> 33 | AD9: =SUM(AD4:AD8) -> 45 | AE9: =SUM(AE4:AE8) -> 68 | AF9: =PRODUCT(AE9/AG9) -> 66.7 % | AG9: =SUM(AG4:AG8) -> 102 | AM9: =SUM(AM4:AM8) -> 1 | AN9: =SUM(AN4:AN8) -> 0 | AO9: =SUM(AO4:AO8) -> 1 | AP9: =SUM(AP4:AP8) -> 0 | AQ9: =SUM(AQ4:AQ8) -> 4 | AR9: =PRODUCT(AQ9/AS9) -> 50.0 % | AS9: =SUM(AS4:AS8) -> 8
B11: KAIKKI OTTELUT | E11: OTT | F11: KUN | G11: LÖI | H11: TOI | I11: KL | J11: KL-% | L11: ka/L | M11: ka/T | N11: ka/l+t | O11: ka/kl | R11: Seurat | T11: LaVe = Lappajärven Veikot (1911), kasvattajaseura
B12: SUPERPESIS | E12: 239 | F12: 7 | G12: 188 | H12: 84 | I12: 789 | J12: 50.5 % | K12: =PRODUCT(I12/J12) -> 1562.376238 | L12: =PRODUCT((F12+G12)/E12) -> 0.82 | M12: =PRODUCT(H12/E12) -> 0.35 | N12: =PRODUCT((F12+G12+H12)/E12) -> 1.17 | O12: =PRODUCT(I12/E12) -> 3.30 | T12: AA = Alajärven Ankkurit (1944)
B13: YKKÖSPESIS | E13: =PRODUCT(E9+Q9) -> 22 | F13: =PRODUCT(F9+R9) -> 4 | G13: =PRODUCT(G9+S9) -> 56 | H13: =PRODUCT(H9+T9) -> 22 | I13: =PRODUCT(I9+U9) -> 141 | J13: =PRODUCT(I13/K13) -> 73.1 % | K13: =PRODUCT(K9+W9) -> 193 | L13: =PRODUCT((F13+G13)/E13) -> 2.73 | M13: =PRODUCT(H13/E13) -> 1.00 | N13: =PRODUCT((F13+G13+H13)/E13) -> 3.73 | O13: =PRODUCT(I13/E13) -> 6.41 | T13: SMJ = Seinäjoen Maila-Jussit (1932)
B14: SUOMENSARJA | E14: =PRODUCT(AA9+AM9) -> 31 | F14: =PRODUCT(AB9+AN9) -> 3 | G14: =PRODUCT(AC9+AO9) -> 34 | H14: =PRODUCT(AD9+AP9) -> 45 | I14: =PRODUCT(AE9+AQ9) -> 72 | J14: =PRODUCT(I14/K14) -> 65.5 % | K14: =PRODUCT(AG9+AS9) -> 110 | L14: =PRODUCT((F14+G14)/E14) -> 1.19 | M14: =PRODUCT(H14/E14) -> 1.45 | N14: =PRODUCT((F14+G14+H14)/E14) -> 2.65 | O14: 5.54
B15: YHTEENSÄ | E15: =SUM(E12:E14) -> 292 | F15: =SUM(F12:F14) -> 14 | G15: 278 | H15: 151 | I15: 1002 | J15: =PRODUCT(I15/K15) -> 53.7 % | K15: =SUM(K12:K14) -> 1865.376238 | L15: =PRODUCT((F15+G15)/E15) -> 1.00 | M15: =PRODUCT(H15/E15) -> 0.52 | N15: =PRODUCT((F15+G15+H15)/E15) -> 1.52 | O15: 3.66

Sheet Arvo-ottelut
B1: ITÄ - LÄNSI - KORTTI
B2: Sami Koivula | C2: 21.5.1975 Lappajärvi
B3: C - POJAT | C3: Itä - Länsi, tulos | D3: Joukkue | E3: Seura | G3: V | H3: T | I3: H | J3: Up. | K3: Lj. | L3: Palk. | M3: O | N3: K | O3: L | P3: T | Q3: KL | R3: 1 | S3: 2 | T3: 3 | U3: k | V3: KL-% | W3: Pelinjohtaja | X3: Yleisöä
B4: 31.07. 1990 Raahe | C4: 24-16 | D4: Länsi | E4: AA | I4: 1 | L4: II p | M4: 1 | N4: 2 | O4: 4 | P4: 2 | W4: Kari Kiiskilä | X4: 674
B6: B - POJAT | C6: Itä - Länsi, tulos | D6: Joukkue | E6: Seura | G6: V | H6: T | I6: H | J6: Up. | K6: Lj. | L6: Palk. | M6: O | N6: K | O6: L | P6: T | Q6: KL | R6: 1 | S6: 2 | T6: 3 | U6: k | V6: KL-% | W6: Pelinjohtaja | X6: Yleisöä
B7: 06.07. 1991 Siilinjärvi | C7: 11-3 | D7: Länsi | E7: AA | I7: 1 | M7: 1 | W7: Seppo Soini | X7: 326
B8: 07.07. 1992 Hämeenlinna | C8: 8-6 | D8: Länsi | E8: AA | I8: 1 | L8: I p | M8: 1 | P8: 2 | W8: Ilkka Musto | X8: 1500
B9: Yhteensä | I9: 2 | M9: 1 | P9: 2
B11: A - POJAT | C11: Itä - Länsi, tulos | D11: Joukkue | E11: Seura | G11: V | H11: T | I11: H | J11: Up. | K11: Lj. | L11: Palk. | M11: O | N11: K | O11: L | P11: T | Q11: KL | R11: 1 | S11: 2 | T11: 3 | U11: k | V11: KL-% | W11: Pelinjohtaja | X11: Yleisöä
B12: 24.07. 1994 Loimaa | C12: 6-3 | D12: Länsi | E12: AA | I12: 1 | J12: 1v | K12: 4 | M12: 1 | P12: 1 | Q12: 5/9 | R12: 1/2 | S12: 2/2 | T12: 2/4 | U12: 0/1 | V12: 55.6 % | W12: Jukka Fagerroos | X12: 3268

Sheet Kärkilyönnit
B1: KÄRKILYÖNNIT RUNKOSARJASSA | V1: VUOSITTAISET SIJOITUKSET TOP - 30
G2: 0 > 1 | J2: 1 > 2 | M2: 2 > 3 | P2: 3 > k | S2: Yhteensä
B3: Vuosi | C3: Sija | D3: Seura | E3: OTT | F3: KL | G3: YHT | H3: % | I3: KL | J3: YHT | K3: % | L3: KL | M3: YHT | N3: % | O3: KL | P3: YHT | Q3: % | R3: KL | S3: YHT | T3: % | V3: Vuosi | W3: Sija | X3: Seura | Y3: 0 > 1 | Z3: 1 > 2 | AA3: 2 > 3 | AB3: 3 > k | AC3: KL
B4: 1993 | C4: 2. | D4: AA | E4: 7 | F4: 3 | G4: 7 | H4: =PRODUCT(F4/G4) -> 42.9 % | I4: 0 | J4: 3 | K4: =PRODUCT(I4/J4) -> 0.0 % | L4: 3 | M4: 5 | N4: =PRODUCT(L4/M4) -> 60.0 % | O4: 0 | P4: 2 | Q4: =PRODUCT(O4/P4) -> 0.0 % | R4: 6 | S4: =PRODUCT(G4+J4+M4+P4) -> 17 | T4: 35.3 % | V4: 1993 | W4: 2. | X4: AA
B5: 1994 | C5: 4. | D5: AA | E5: 34 | F5: 26 | G5: 73 | H5: 35.6 % | I5: 22 | J5: 59 | K5: 37.3 % | L5: 29 | M5: 45 | N5: 64.4 % | O5: 24 | P5: 55 | Q5: 43.6 % | R5: 101 | S5: 232 | T5: 43.5 % | V5: 1994 | W5: 4. | X5: AA | AB5: 25.
B6: 1995 | C6: 6. | D6: AA | E6: 28 | F6: 25 | G6: 58 | H6: 43.1 % | I6: 21 | J6: 41 | K6: 51.2 % | L6: 25 | M6: 46 | N6: 54.3 % | O6: 16 | P6: 48 | Q6: 33.3 % | R6: 87 | S6: 193 | T6: 45.1 % | V6: 1995 | W6: 6. | X6: AA
B7: 1996 | C7: 11. | D7: AA | E7: 29 | F7: 16 | G7: 42 | H7: 38.1 % | I7: 27 | J7: 59 | K7: 45.8 % | L7: 41 | M7: 52 | N7: 78.8 % | O7: 27 | P7: 55 | Q7: 49.1 % | R7: 111 | S7: 208 | T7: 53.4 % | V7: 1996 | W7: 11. | X7: AA | AA7: 24. | AB7: 22.
B8: 1997 | C8: 11. | D8: AA | E8: 28 | F8: 23 | G8: 50 | H8: 46.0 % | I8: 29 | J8: 56 | K8: 51.8 % | L8: 46 | M8: 70 | N8: 65.7 % | O8: 23 | P8: 47 | Q8: 48.9 % | R8: 121 | S8: 223 | T8: 54.3 % | V8: 1997 | W8: 11. | X8: AA | AA8: 19.
B9: 1998 | C9: 10. | D9: AA | E9: 28 | F9: 26 | G9: 49 | H9: 53.1 % | I9: 23 | J9: 54 | K9: 42.6 % | L9: 35 | M9: 59 | N9: 59.3 % | O9: 27 | P9: 45 | Q9: 60.0 % | R9: 111 | S9: 207 | T9: 53.6 % | V9: 1998 | W9: 10. | X9: AA | AB9: 23.
B10: 1999 | C10: 9. | D10: AA | E10: 27 | F10: 8 | G10: 23 | H10: 34.8 % | I10: 8 | J10: 23 | K10: 34.8 % | L10: 16 | M10: 33 | N10: 48.5 % | O10: 15 | P10: 49 | Q10: 30.6 % | R10: 47 | S10: 128 | T10: 35.9 % | V10: 1999 | W10: 9. | X10: AA
B11: 2000 | V11: 2000
B12: 2001 | C12: 12. | D12: AA | E12: 26 | F12: 6 | G12: 11 | H12: 54.5 % | I12: 25 | J12: 37 | K12: 67.6 % | L12: 45 | M12: 58 | N12: 77.6 % | O12: 34 | P12: 69 | Q12: 49.3 % | R12: 110 | S12: 175 | T12: 62.9 % | V12: 2001 | W12: 12. | X12: AA | AA12: 24. | AB12: 27.
B13: 2002 | V13: 2002
B14: 2003 | V14: 2003
B15: 2004 | V15: 2004
B16: 2005 | C16: 12. | D16: SMJ | E16: 1 | F16: 0 | G16: 0 | H16: 0.0 % | I16: 0 | J16: 1 | K16: 0.0 % | L16: 2 | M16: 2 | N16: 100.0 % | O16: 1 | P16: 2 | Q16: 50.0 % | R16: 3 | S16: 5 | T16: 60.0 % | V16: 2005 | W16: 12. | X16: SMJ
B17: Yhteensä | E17: =SUM(E4:E16) -> 208 | F17: =SUM(F4:F16) -> 133 | G17: =SUM(G4:G16) -> 313 | H17: =PRODUCT(F17/G17) -> 42.5 % | I17: =SUM(I4:I16) -> 155 | J17: =SUM(J4:J16) -> 333 | K17: =PRODUCT(I17/J17) -> 46.5 % | L17: =SUM(L4:L16) -> 242 | M17: =SUM(M4:M16) -> 370 | N17: =PRODUCT(L17/M17) -> 65.4 % | O17: =SUM(O4:O16) -> 167 | P17: =SUM(P4:P16) -> 372 | Q17: =PRODUCT(O17/P17) -> 44.9 % | R17: =SUM(R4:R16) -> 697 | S17: =SUM(S4:S16) -> 1388 | T17: 50.1 %
B19: KÄRKILYÖNNIT YLEMMISSÄ PUDOTUSPELEISSÄ | V19: VUOSITTAISET SIJOITUKSET TOP - 30
G20: 0 > 1 | J20: 1 > 2 | M20: 2 > 3 | P20: 3 > k | S20: Yhteensä
B21: Vuosi | C21: Sija | D21: Seura | E21: OTT | F21: KL | G21: YHT | H21: % | I21: KL | J21: YHT | K21: % | L21: KL | M21: YHT | N21: % | O21: KL | P21: YHT | Q21: % | R21: KL | S21: YHT | T21: % | V21: Vuosi | W21: Sija | X21: Seura | Y21: 0 > 1 | Z21: 1 > 2 | AA21: 2 > 3 | AB21: 3 > k | AC21: KL
B22: 1993 | C22: 4. | D22: AA | E22: 2 | F22: 0 | G22: 1 | H22: 0.0 % | I22: 0 | J22: 1 | K22: 0.0 % | L22: 0 | M22: 1 | N22: 0.0 % | O22: 0 | P22: 1 | Q22: 0.0 % | R22: 0 | S22: 4 | T22: 0.0 % | V22: 1993 | W22: 4. | X22: AA
B23: 1994 | C23: 4. | D23: AA | E23: 4 | F23: 1 | G23: 6 | H23: 16.7 % | I23: 5 | J23: 10 | K23: 50.0 % | L23: 5 | M23: 8 | N23: 62.5 % | O23: 2 | P23: 6 | Q23: 33.3 % | R23: 13 | S23: 30 | T23: 43.3 % | V23: 1994 | W23: 4. | X23: AA | Z23: 17. | AA23: 13. | AB23: 20. | AC23: 27.
B24: 1995 | C24: 6. | D24: AA | E24: 1 | F24: 0 | G24: 2 | H24: 0.0 % | I24: 0 | J24: 0 | K24: 0.0 % | L24: 0 | M24: 0 | N24: 0.0 % | O24: 0 | P24: 0 | Q24: 0.0 % | R24: 0 | S24: 2 | T24: 0.0 % | V24: 1995 | W24: 6. | X24: AA
B25: Yhteensä | E25: =SUM(E20:E24) -> 7 | F25: =SUM(F22:F24) -> 1 | G25: =SUM(G22:G24) -> 9 | H25: =PRODUCT(F25/G25) -> 11.1 % | I25: =SUM(I22:I24) -> 5 | J25: =SUM(J22:J24) -> 11 | K25: =PRODUCT(I25/J25) -> 45.5 % | L25: =SUM(L22:L24) -> 5 | M25: =SUM(M22:M24) -> 9 | N25: =PRODUCT(L25/M25) -> 55.6 % | O25: =SUM(O22:O24) -> 2 | P25: =SUM(P22:P24) -> 7 | Q25: =PRODUCT(O25/P25) -> 28.6 % | R25: =SUM(R22:R24) -> 13 | S25: =SUM(S22:S24) -> 36 | T25: =PRODUCT(R25/S25) -> 36.1 %
B27: KÄRKILYÖNNIT
G28: 0 > 1 | J28: 1 > 2 | M28: 2 > 3 | P28: 3 > k | S28: Yhteensä
E29: OTT | F29: KL | G29: YHT | H29: % | I29: KL | J29: YHT | K29: % | L29: KL | M29: YHT | N29: % | O29: KL | P29: YHT | Q29: % | R29: KL | S29: YHT | T29: %
B30: RUNKOSARJA | E30: =PRODUCT(E17) -> 208 | F30: =PRODUCT(F17) -> 133 | G30: =PRODUCT(G17) -> 313 | H30: =PRODUCT(H17) -> 42.5 % | I30: =PRODUCT(I17) -> 155 | J30: =PRODUCT(J17) -> 333 | K30: =PRODUCT(K17) -> 46.5 % | L30: =PRODUCT(L17) -> 242 | M30: =PRODUCT(M17) -> 370 | N30: =PRODUCT(N17) -> 65.4 % | O30: =PRODUCT(O17) -> 167 | P30: =PRODUCT(P17) -> 372 | Q30: =PRODUCT(Q17) -> 44.9 % | R30: =PRODUCT(R17) -> 697 | S30: =PRODUCT(S17) -> 1388 | T30: =PRODUCT(T17) -> 50.1 %
B31: PLAY OFF | E31: =PRODUCT(E25) -> 7 | F31: =PRODUCT(F25) -> 1 | G31: 9 | H31: 11.1 % | I31: 5 | J31: 11 | K31: 45.5 % | L31: 5 | M31: 9 | N31: 55.6 % | O31: 2 | P31: 7 | Q31: 28.6 % | R31: 13 | S31: 36 | T31: 36.1 %
